{"text_format":"3","workbook":"xlsx","n_sheets":16,"sheets":["2023","2024","4b","2a","2b ","2c","2d","2đ","2e","2g","2h","2i","2k","2l","2m","2n"],"not_rendered":{"defined_names":10},"read":"whole","date_system":"1900"}

{"sheet":"2023","index":0,"n_rows":53,"n_cols":3,"rows_kept":53,"merged":[[3,0,3,2],[4,0,4,2],[6,0,7,0],[6,1,7,1],[6,2,7,2],[46,0,46,2]]}
[]
["ỦY BAN NHÂN DÂN TỈNH, THÀNH PHỐ:…"]
[]
["BÁO CÁO NHU CẦU VÀ NGUỒN KINH PHÍ ĐỂ THỰC HIỆN CẢI CÁCH TIỀN LƯƠNG NĂM 2023"]
["(Ban hành kèm theo Thông tư số 51/2023/TT-BTC ngày 17 tháng 7 năm 2023 của Bộ trưởng Bộ Tài chính)"]
[null,null,"Đơn vị: triệu đồng"]
["STT","Nội dung","Kinh phí"]
[]
[1,2,3]
["A","NGUỒN THỰC HIỆN CẢI CÁCH TIỀN LƯƠNG NĂM 2023"]
[1,"70% tăng thu NSĐP (không kể: thu tiền sử dụng đất, thu xổ số kiến thiết, thu cổ phần hóa và thoái vốn doanh nghiệp nhà nước do địa phương quản lý, thu tiền thuê đất một lần được nhà đầu tư ứng trước để bồi thường, giải phóng mặt bằng và thu từ xử lý tài sản công tại cơ quan, tổ chức, đơn vị được cơ quan có thẩm quyền quyết định sử dụng để chi đầu tư theo quy định; thu tiền bảo vệ và phát triển đất trồng lúa; phí tham quan các khu di tích, di sản thế giới; phí sử dụng công trình kết cấu hạ tầng, công trình dịch vụ, tiện ích công cộng trong khu vực cửa khẩu; phí bảo vệ môi trường đối với khai thác khoáng sản; phí bảo vệ môi trường đối với nước thải; thu từ quỹ đất công ích, thu hoa lợi, công sản tại xã và thu tiền cho thuê, cho thuê mua, bán nhà thuộc sở hữu nhà nước) được Thủ tướng Chính phủ giao thực hiện 2022 so dự toán Thủ tướng Chính phủ giao năm 2022"]
[2,"Số tiết kiệm 10% chi thường xuyên dự toán năm 2023"]
[3,"Số thu được huy động từ nguồn để lại đơn vị chưa tự đảm bảo chi thường xuyên năm 2023"]
[null,"+ Học phí"]
[null,"+ Viện phí"]
[null,"+ Nguồn thu khác"]
[9,"Nguồn 50% phần ngân sách nhà nước giảm chi hỗ trợ hoạt động thường xuyên trong lĩnh vực hành chính và các đơn vị sự nghiệp công lập năm 2022"]
[]
[]
[]
[]
[4,"Nguồn thực hiện cải cách tiền lương năm 2022 chưa sử dụng hết chuyển sang 2023 (nếu có)"]
[]
[]
[]
[]
[]
["B","TỔNG NHU CẦU NĂM 2023"]
["I","Tổng nhu cầu kinh phí tăng thêm để thực hiện cải cách tiền lương theo Nghị định số 24/2023/NĐ-CP và Nghị định số 42/2023/NĐ-CP (6 tháng lương cơ sở 1,8 triệu đồng)"]
["IV","Tổng nhu cầu kinh phí tăng thêm để thực hiện cải cách tiền lương theo Nghị định số .../2020/NĐ-CP và Nghị định số .../2020/NĐ-CP"]
[1,"Quỹ tiền lương, phụ cấp tăng thêm đối với cán bộ công chức khu vực hành chính, sự nghiệp"]
[2,"Quỹ lương, phụ cấp tăng thêm đối với cán bộ chuyên trách và công chức cấp xã "]
[3,"Hoạt động phí tăng thêm đối với đại biểu hội đồng nhân dân các cấp"]
[4,"Quỹ trợ cấp tăng thêm đối với cán bộ xã nghỉ việc hưởng trợ cấp hàng tháng theo NĐ 42/2023/NĐ-CP"]
[5,"Kinh phí tăng thêm thực hiện chế độ đối với cán bộ không chuyên trách cấp xã, thôn và tổ dân phố"]
[6,"Kinh phí tăng thêm để thực hiện phụ cấp trách nhiệm đối với cấp uỷ viên các cấp theo QĐ số 169-QĐ/TW  ngày 24/6/2008 "]
[7,"Kinh phí tăng thêm thực hiện chế độ bồi dưỡng phục vụ hoạt động cấp uỷ thuộc cấp tỉnh theo Quy định 09-QĐ/VPTW ngày 22/9/2017"]
["II","Nhu cầu thực hiện một số loại phụ cấp, trợ cấp theo quy định:"]
[1,"Nhu cầu kinh phí thực hiện chính sách tinh giản biên chế năm 2023 theo NĐ số 108/2014/NĐ-CP ngày 20/11/2014 và Nghị định số 113/2018/NĐ-CP ngày 31/8/2018 của Chính phủ"]
[2,"Nhu cầu kinh phí thực hiện chính sách nghỉ hưu trước tuổi năm 2023 theo NĐ số 26/2015/NĐ-CP ngày 09/3/2015 của Chính phủ"]
[3,"Nhu cầu kinh phí thực hiện chế độ phụ cấp y tế cơ sở theo Nghị định số 05/2023/NĐ-CP ngày 15/02/2023 của Chính phủ (chế độ năm 2022 và năm 2023)"]
[4,"Trợ cấp lần đầu, chuyển công tác ra khỏi vùng đặc biệt khó khăn theo quy định tại Nghị định số 76/2019/NĐ-CP"]
[5,"Nhu cầu kinh phí thực hiện một số chế độ phụ cấp, trợ cấp khác (*)"]
["C","CHÊNH LỆCH NHU CẦU VÀ NGUỒN NĂM 2023"]
[1,"Phần thiếu nguồn, ngân sách trung ương hỗ trợ"]
[2,"Nguồn thực hiện cải cách tiền lương còn dư"]
[]
[null,"Ghi chú: Địa phương báo cáo chi tiết từng loại phụ cấp, trợ cấp khác và nhu cầu tương ứng"]
[]
[null,"…, ngày……tháng…….năm 2023              "]
[null,"TM.ỦY BAN NHÂN DÂN TỈNH, THÀNH PHỐ"]
[null,"CHỦ TỊCH                                 "]
[null,"( Ký tên, đóng dấu)                          "]

{"sheet":"2024","index":1,"n_rows":50,"n_cols":3,"rows_kept":50,"merged":[[3,0,3,2],[4,0,4,2],[6,0,7,0],[6,1,7,1],[6,2,7,2],[43,0,43,2]]}
[]
["ỦY BAN NHÂN DÂN TỈNH, THÀNH PHỐ:…"]
[]
["BÁO CÁO NHU CẦU VÀ NGUỒN KINH PHÍ ĐỂ THỰC HIỆN CẢI CÁCH TIỀN LƯƠNG NĂM 2024"]
["(Ban hành kèm theo Thông tư số 51/2023/TT-BTC ngày 17 tháng 7 năm 2023 của Bộ trưởng Bộ Tài chính)"]
[null,null,"Đơn vị: triệu đồng"]
["STT","Nội dung","Kinh phí"]
[]
[1,2,3]
["A","NGUỒN THỰC HIỆN CẢI CÁCH TIỀN LƯƠNG NĂM 2024"]
[1,"70% tăng thu NSĐP (không kể: thu tiền sử dụng đất, thu xổ số kiến thiết, thu cổ phần hóa và thoái vốn doanh nghiệp nhà nước do địa phương quản lý, thu tiền thuê đất một lần được nhà đầu tư ứng trước để bồi thường, giải phóng mặt bằng và thu từ xử lý tài sản công tại cơ quan, tổ chức, đơn vị được cơ quan có thẩm quyền quyết định sử dụng để chi đầu tư theo quy định; thu tiền bảo vệ và phát triển đất trồng lúa; phí tham quan các khu di tích, di sản thế giới; phí sử dụng công trình kết cấu hạ tầng, công trình dịch vụ, tiện ích công cộng trong khu vực cửa khẩu; phí bảo vệ môi trường đối với khai thác khoáng sản; phí bảo vệ môi trường đối với nước thải; thu từ quỹ đất công ích, thu hoa lợi, công sản tại xã và thu tiền cho thuê, cho thuê mua, bán nhà thuộc sở hữu nhà nước) được Thủ tướng Chính phủ giao thực hiện 2023 so dự toán Thủ tướng Chính phủ giao năm 2023"]
[2,"50% tăng thu NSĐP (không kể: thu tiền sử dụng đất, thu xổ số kiến thiết, thu cổ phần hóa và thoái vốn doanh nghiệp nhà nước do địa phương quản lý, thu tiền thuê đất một lần được nhà đầu tư ứng trước để bồi thường, giải phóng mặt bằng và thu từ xử lý tài sản công tại cơ quan, tổ chức, đơn vị được cơ quan có thẩm quyền quyết định sử dụng để chi đầu tư theo quy định; thu tiền bảo vệ và phát triển đất trồng lúa; phí tham quan các khu di tích, di sản thế giới; phí sử dụng công trình kết cấu hạ tầng, công trình dịch vụ, tiện ích công cộng trong khu vực cửa khẩu; phí bảo vệ môi trường đối với khai thác khoáng sản; phí bảo vệ môi trường đối với nước thải; thu từ quỹ đất công ích, thu hoa lợi, công sản tại xã và thu tiền cho thuê, cho thuê mua, bán nhà thuộc sở hữu nhà nước) dự toán năm 2024 so dự toán năm 2023"]
[3,"Số tiết kiệm 10% chi thường xuyên dự toán năm 2023"]
[4,"Số tiết kiệm 10% chi thường xuyên tăng thêm dự toán năm 2024 so 2023"]
[5,"Số thu được huy động từ nguồn để lại đơn vị chưa tự đảm bảo chi thường xuyên năm 2024"]
[null,"+ Học phí"]
[null,"+ Viện phí"]
[null,"+ Nguồn thu khác"]
[6,"Phần ngân sách nhà nước giảm chi hỗ trợ hoạt động thường xuyên trong lĩnh vực hành chính và các đơn vị sự nghiệp công lập năm 2024 dành cho CCTL"]
[7,"Nguồn thực hiện cải cách tiền lương năm 2023 dự kiến chưa sử dụng hết chuyển sang 2024"]
[]
[]
[]
[]
[]
["B","TỔNG NHU CẦU NĂM 2024"]
["I","Tổng nhu cầu kinh phí tăng thêm để thực hiện cải cách tiền lương theo Nghị định số 24/2023/NĐ-CP và Nghị định số 42/2023/NĐ-CP (tính đủ 12 tháng)"]
["IV","Tổng nhu cầu kinh phí tăng thêm để thực hiện cải cách tiền lương theo Nghị định số .../2020/NĐ-CP và Nghị định số .../2020/NĐ-CP"]
{"$rows_empty":7}
["II","Nhu cầu thực hiện một số loại phụ cấp, trợ cấp theo quy định:"]
[1,"Nhu cầu kinh phí thực hiện chính sách tinh giản biên chế năm 2024 theo NĐ số 108/2014/NĐ-CP ngày 20/11/2014 và Nghị định số 113/2018/NĐ-CP ngày 31/8/2018 của Chính phủ"]
[2,"Nhu cầu kinh phí thực hiện chính sách nghỉ hưu trước tuổi năm 2024 theo NĐ số 26/2015/NĐ-CP ngày 09/3/2015 của Chính phủ"]
[3,"Trợ cấp lần đầu, chuyển công tác ra khỏi vùng đặc biệt khó khăn theo quy định tại Nghị định số 76/2019/NĐ-CP"]
[4,"Nhu cầu kinh phí thực hiện một số chế độ phụ cấp, trợ cấp khác (*)"]
["C","CHÊNH LỆCH NHU CẦU VÀ NGUỒN NĂM 2024"]
[1,"Phần thiếu nguồn, ngân sách trung ương hỗ trợ"]
[2,"Nguồn thực hiện cải cách tiền lương còn dư"]
[]
[null,"Ghi chú: Địa phương báo cáo chi tiết từng loại phụ cấp, trợ cấp khác và nhu cầu tương ứng"]
[]
[null,"…, ngày……tháng…….năm 2023               "]
[null,"TM.ỦY BAN NHÂN DÂN TỈNH, THÀNH PHỐ"]
[null,"CHỦ TỊCH                                 "]
[null,"( Ký tên, đóng dấu)                          "]

{"sheet":"4b","index":2,"n_rows":46,"n_cols":9,"rows_kept":46,"hidden":true,"merged":[[0,0,0,8],[2,0,2,8],[3,0,3,8],[5,0,9,0],[5,1,9,1],[5,2,9,2],[5,3,5,8],[6,3,9,3],[6,4,9,4],[6,5,6,7],[6,8,9,8],[7,5,9,5],[7,6,9,6],[7,7,9,7]]}
[1]
["ỦY BAN NHÂN DÂN TỈNH, THÀNH PHỐ:…"]
["TỔNG HỢP NHU CẦU, NGUỒN THỰC HIỆN CẢI CÁCH TIỀN LƯƠNG NĂM 2022"]
[{"$f":"+#REF!","v":{"$error":"#REF!"}}]
[{"$nulls":8},"Đơn vị: Triệu đồng"]
["STT","CHỈ TIÊU","NHU CẦU KINH PHÍ THỰC HIỆN CCTL NĂM 2022","NGUỒN TỪ TIẾT KIÊM 10% CHI THƯỜNG XUYÊN, NGUỒN THU ĐỂ LẠI ĐƠN VỊ VÀ NGUỒN TIẾT KIỆM THEO NGHỊ QUYẾT 18, 19"]
[{"$nulls":3},"TỔNG SỐ"," TIẾT KIỆM 10% CHI THƯỜNG XUYÊN","NGUỒN THU TỪ ĐƠN VỊ HÀNH CHÍNH, SỰ NGHIỆP",null,null," TIẾT KIỆM CHI THEO NGHỊ QUYẾT 18, 19"]
[{"$nulls":4},"chi thường xuyên","HỌC PHÍ","VIỆN PHÍ","KHÁC","chi thường xuyên"]
[]
[]
[null,"TỔNG SỐ"]
["a","Sự nghiệp giáo dục và đào tạo"]
[null,"Trong đó:"]
[null,"- Giáo dục"]
[null,"- Đào tạo"]
["b","Sự nghiệp y tế"]
["c","Sự nghiệp khác"]
["d","Quản lý nhà nước, Đảng, đoàn thể"]
[null,"Trong đó: Cán bộ, công chức cấp xã"]
[]
[null,"Trong đó:"]
["I","Cấp tỉnh"]
["a","Sự nghiệp giáo dục và đào tạo"]
[null,"Trong đó:"]
[null,"- Giáo dục"]
[null,"- Đào tạo"]
["b","Sự nghiệp y tế"]
["c","Sự nghiệp khác"]
["d","Quản lý nhà nước, Đảng, đoàn thể"]
["II","Cấp huyện"]
[1,"Huyện A"]
["a","Sự nghiệp giáo dục và đào tạo"]
[null,"Trong đó:"]
[null,"- Giáo dục"]
[null,"- Đào tạo"]
["b","Sự nghiệp y tế"]
["c","Sự nghiệp khác"]
["d","Quản lý nhà nước, Đảng, đoàn thể"]
[null,"Trong đó: Cán bộ, công chức cấp xã"]
[2,"Huyện B"]
[null,"…"]
[]
[]
[{"$nulls":7},"…, ngày……tháng…….năm…                     "]
[{"$nulls":7},"CHỦ TỊCH ỦY BAN NHÂN DÂN TỈNH, THÀNH PHỐ"]
[{"$nulls":7},"( Ký tên, đóng dấu)                               "]

{"sheet":"2a","index":3,"n_rows":46,"n_cols":36,"rows_kept":46,"hidden":true,"merged":[[0,0,0,17],[0,18,0,35],[3,0,3,17],[3,19,3,36],[4,0,4,17],[4,19,4,36],[6,0,10,0],[6,1,10,1],[6,2,10,2],[6,3,10,3],[6,4,6,17],[6,18,10,18],[6,19,10,19],[6,20,6,33],[6,34,10,34],[6,35,10,35],[7,4,10,4],[7,5,10,5],[7,6,10,6],[7,7,7,16],[7,17,10,17],[7,20,10,20],[7,21,10,21],[7,22,10,22],[7,23,7,32],[7,33,10,33],[8,7,10,7],[8,8,10,8],[8,9,10,9],[8,10,10,10],[8,11,10,11],[8,12,10,12],[8,13,10,13],[8,14,10,14],[8,15,10,15],[8,16,10,16],[8,23,10,23],[8,24,10,24],[8,25,10,25],[8,26,10,26],[8,27,10,27],[8,28,10,28],[8,29,10,29],[8,30,10,30],[8,31,10,31],[8,32,10,32],[42,1,42,16],[42,31,42,33],[45,1,45,17],[45,31,45,33]]}
[1,{"$nulls":17},2]
["ỦY BAN NHÂN DÂN TỈNH, THÀNH PHỐ:…",{"$nulls":16},"Biểu số 2a",null,"ỦY BAN NHÂN DÂN TỈNH, THÀNH PHỐ:…",{"$nulls":15},"Biểu số 2a"]
[]
["BÁO CÁO NHU CẦU KINH PHÍ THỰC HIỆN NGHỊ ĐỊNH SỐ 38/2019/NĐ-CP NĂM 2020",{"$nulls":18},{"$f":"A4","v":"BÁO CÁO NHU CẦU KINH PHÍ THỰC HIỆN NGHỊ ĐỊNH SỐ 38/2019/NĐ-CP NĂM 2020"}]
[{"$f":"+#REF!","v":{"$error":"#REF!"}},{"$nulls":18},{"$f":"+A5","v":{"$error":"#REF!"}}]
[{"$nulls":17},"Đơn vị: Triệu đồng",{"$nulls":17},"Đơn vị: Triệu đồng"]
["STT","NỘI DUNG","BIÊN CHẾ ĐƯỢC CẤP CÓ THẨM QUYỀN GIAO HOẶC PHÊ DUYỆT NĂM 2020","TỔNG SỐ ĐỐI TƯỢNG HƯỞNG LƯƠNG CÓ MẶT ĐẾN 01/7/2020"," QUỸ TIỀN LƯƠNG, PHỤ CẤP VÀ CÁC KHOẢN ĐÓNG GÓP THÁNG 7/2020\n THEO NGHỊ ĐỊNH SỐ 72/2018/NĐ-CP",{"$nulls":13},"   ","NỘI DUNG"," QUỸ TIỀN LƯƠNG, PHỤ CẤP VÀ CÁC KHOẢN ĐÓNG GÓP THÁNG 7/2020\n THEO NGHỊ ĐỊNH SỐ 38/2019/NĐ-CP",{"$nulls":13},"CHÊNH LỆCH QUỸ LƯƠNG, PHỤ CẤP TĂNG THÊM 1 THÁNG","NHU CẦU KINH PHÍ THỰC HIỆN NGHỊ ĐỊNH SỐ 38/2019/NĐ-CP NĂM 2020"]
[{"$nulls":4},"TỔNG CỘNG"," LƯƠNG THEO NGẠCH, BẬC CHỨC VỤ","TỔNG CÁC KHOẢN PHỤ CẤP (1)","Trong đó",{"$nulls":9},"CÁC KHOẢN ĐÓNG GÓP BHXH, BHYT, BHTN, KPCĐ (2)",null,null,"TỔNG CỘNG"," LƯƠNG THEO NGẠCH, BẬC CHỨC VỤ","TỔNG CÁC KHOẢN PHỤ CẤP (1)","Trong đó",{"$nulls":9},"CÁC KHOẢN ĐÓNG GÓP BHXH, BHYT, BHTN, KPCĐ (2)"]
[{"$nulls":7},"PHỤ CẤP KHU VỰC","PHỤ CẤP CHỨC VỤ","PHỤ CẤP THÂM NIÊN VƯỢT KHUNG","PHỤ CẤP ƯU ĐÃI NGÀNH","PHỤ CẤP THU HÚT","PHỤ CẤP CÔNG TÁC LÂU NĂM ","PHỤ CẤP CÔNG VỤ ","PHỤ CẤP CÔNG TÁC ĐẢNG","PHỤ CẤP THÂM NIÊN NGHỀ","PHỤ CẤP KHÁC",{"$nulls":6},"PHỤ CẤP KHU VỰC","PHỤ CẤP CHỨC VỤ","PHỤ CẤP THÂM NIÊN VƯỢT KHUNG","PHỤ CẤP ƯU ĐÃI NGÀNH","PHỤ CẤP THU HÚT","PHỤ CẤP CÔNG TÁC LÂU NĂM ","PHỤ CẤP CÔNG VỤ ","PHỤ CẤP CÔNG TÁC ĐẢNG","PHỤ CẤP THÂM NIÊN NGHỀ","PHỤ CẤP KHÁC"]
[{"$nulls":8},"chức vụ","chức vụ",null,"hút",{"$nulls":12},"chức vụ","chức vụ",null,"hút"]
[]
[1,"2",3,{"$f":"C12+1","v":4},"5 = 6 + 7 + 18",6,"7= 8 + ... +17",8,{"$f":"H12+1","v":9},10,11,12,13,14,15,16,17,18,1,"2","19 = 20 + 21 + 32",20,"21= 22 + ... + 32",22,{"$f":"X12+1","v":23},24,25,26,27,28,29,30,31,32,"33 = 19 - 5","34 = 33*12"]
[null,"TỔNG CỘNG (I+II+III+IV)",{"$nulls":17},"TỔNG CỘNG (I+II+III+IV)"]
["I","KHU VỰC HCSN, ĐẢNG, ĐOÀN THỂ",{"$nulls":16},"I","KHU VỰC HCSN, ĐẢNG, ĐOÀN THỂ"]
[null,"Trong đó:",{"$nulls":17},"Trong đó:"]
[1,"Sự nghiệp giáo dục - đào tạo ",{"$nulls":16},1,"Sự nghiệp giáo dục - đào tạo "]
[null,"- Giáo dục: ",{"$nulls":17},"- Giáo dục: "]
[null,"Trong đó, đơn vị tự đảm bảo (3)",{"$nulls":17},"Trong đó, đơn vị tự đảm bảo (3)"]
[null,"- Đào tạo",{"$nulls":17},"- Đào tạo"]
[null,"Trong đó, đơn vị tự đảm bảo (3)",{"$nulls":17},"Trong đó, đơn vị tự đảm bảo (3)"]
[2,"Sự nghiệp y tế",{"$nulls":16},2,"Sự nghiệp y tế"]
[null,"Trong đó, đơn vị tự đảm bảo (3)",{"$nulls":17},"Trong đó, đơn vị tự đảm bảo (3)"]
[3,"Sự nghiệp khoa học-công nghệ",{"$nulls":16},3,"Sự nghiệp khoa học-công nghệ"]
[4,"Sự nghiệp văn hoá thông tin",{"$nulls":16},4,"Sự nghiệp văn hoá thông tin"]
[5,"Sự nghiệp phát thanh truyền hình",{"$nulls":16},5,"Sự nghiệp phát thanh truyền hình"]
[6,"Sự nghiệp thể dục - thể thao",{"$nulls":16},6,"Sự nghiệp thể dục - thể thao"]
[7,"Sự nghiệp đảm bảo xã hội",{"$nulls":16},7,"Sự nghiệp đảm bảo xã hội"]
[8,"Hoạt động kinh tế",{"$nulls":16},8,"Hoạt động kinh tế"]
[9,"Sự nghiệp môi trường",{"$nulls":16},9,"Sự nghiệp môi trường"]
[10,"Quản lý nhà nước, đảng, đoàn thể",{"$nulls":16},10,"Quản lý nhà nước, đảng, đoàn thể"]
[null,"- Quản lý NN",{"$nulls":17},"- Quản lý NN"]
[null,"- Đảng, đoàn thể",{"$nulls":17},"- Đảng, đoàn thể"]
["II","CÁN BỘ CHUYÊN TRÁCH, CÔNG CHỨC XÃ",{"$nulls":16},"II","CÁN BỘ CHUYÊN TRÁCH, CÔNG CHỨC XÃ"]
["III","HOẠT ĐỘNG PHÍ ĐẠI BIỂU HĐND CÁC CẤP",{"$nulls":16},"III","HOẠT ĐỘNG PHÍ ĐẠI BIỂU HĐND CÁC CẤP"]
[null,"+ Cấp tỉnh",{"$nulls":17},"+ Cấp tỉnh"]
[null,"+Cấp huyện",{"$nulls":17},"+Cấp huyện"]
[null,"+ Cấp xã",{"$nulls":17},"+ Cấp xã"]
["IV","PHỤ CẤP TRÁCH NHIỆM CẤP ỦY",{"$nulls":16},"IV","PHỤ CẤP TRÁCH NHIỆM CẤP ỦY"]
[null,"+ Uỷ viên cấp tỉnh",{"$nulls":17},"+ Uỷ viên cấp tỉnh"]
[null,"+ Uỷ viên cấp huyện",{"$nulls":17},"+ Uỷ viên cấp huyện"]
[null,"+ Uỷ viên cấp xã",{"$nulls":17},"+ Uỷ viên cấp xã"]
[]
[null,"Ghi chú: \n(1) Chỉ tính các khoản phụ cấp do Trung ương quy định, không kể tiền lương làm việc vào ban đêm, làm thêm giờ, phụ cấp theo mức tuyệt đối",{"$nulls":29},"…, ngày……tháng…….năm…        "]
[null,"(2) Mức đóng BHXH là 17,5%, BHYT là 3%, BHTN là 1%, KPCĐ là 2%.",{"$nulls":30},"CHỦ TỊCH ỦY BAN NHÂN DÂN TỈNH, THÀNH PHỐ"]
[null,"(3) Bao gồm các đơn vị tự bảo đảm chi thường xuyên và chi đầu tư, đơn vị tự bảo đảm chi thường xuyên."]
[null,"* Biên chế được cấp có thẩm quyền giao, phê duyệt, số đối tượng hưởng lương đến 1/7/2020 không bao gồm đối tượng làm việc theo chế độ hợp đồng theo quy định tại Khoản 4 Điều 4 Nghị định số 38/2019/NĐ-CP của Chính phủ.",{"$nulls":29},"(Ký tên, đóng dấu)"]

{"sheet":"2b ","index":4,"n_rows":22,"n_cols":11,"rows_kept":22,"hidden":true,"merged":[[0,0,0,7],[3,0,3,7],[4,0,4,7],[8,0,12,0],[8,1,12,1],[8,2,12,2],[8,3,12,3],[8,4,12,4],[8,5,12,5],[8,6,12,6],[8,7,12,7],[8,9,12,9],[8,10,12,10],[19,0,19,3]]}
[1]
["ỦY BAN NHÂN DÂN TỈNH, THÀNH PHỐ:…."]
[]
["BẢNG TỔNG HỢP QUỸ TRỢ CẤP TĂNG THÊM NĂM 2022 CỦA CÁN BỘ XÃ, PHƯỜNG, THỊ TRẤN ĐÃ NGHỈ VIỆC HƯỞNG TRỢ CẤP HÀNG THÁNG TỪ NGÂN SÁCH NHÀ NƯỚC"]
[{"$f":"+#REF!","v":{"$error":"#REF!"}}]
[]
[]
[{"$nulls":7},"Đơn vị: Triệu đồng"]
["STT","NỘI DUNG","TỔNG SỐ NGƯỜI NGHỈ VIỆC HƯỞNG TRỢ CẤP HÀNG THÁNG ĐẾN 01/01/2022","QUỸ TRỢ CẤP 1 THÁNG THEO QUY ĐỊNH TẠI NGHỊ ĐỊNH SỐ 44/2019/NĐ-CP","QUỸ TRỢ CẤP 1 THÁNG THEO QUY ĐỊNH TẠI NGHỊ ĐỊNH SỐ 108/2021/NĐ-CP","QUỸ TRỢ CẤP 1 THÁNG TĂNG THÊM ","BẢO HIỂM Y TẾ TĂNG THÊM 1 THÁNG","TỔNG QUỸ TRỢ CẤP TĂNG THÊM NĂM 2022",null,"QUỸ TRỢ CẤP 1 THÁNG THEO QUY ĐỊNH TẠI NGHỊ ĐỊNH SỐ 44/2019/NĐ-CP","QUỸ TRỢ CẤP 1 THÁNG THEO QUY ĐỊNH TẠI NGHỊ ĐỊNH SỐ 108/2021/NĐ-CP"]
["TT","Nội dung",{"$nulls":5},"BHYT tăng thêm "]
[{"$nulls":5},"1 tháng",null,"năm 2012"]
[]
[{"$nulls":7},""]
["A","B","1","2","3","4 = 3 - 2","5 = 1 x 4 x 4,5%","6 = (4 + 5) x 12T",null,"7","8"]
[null,"TỔNG SỐ"]
[1,"Nguyên bí thư, chủ tịch.",{"$nulls":7},{"v":2116000,"d":"2,116,000"},{"v":2473000,"d":"2,473,000"}]
[2,"Nguyên Phó bí thư, phó chủ tịch, Thường trực Đảng uỷ, Uỷ viên, Thư ký UBND Thư ký HĐND, xã đội trưởng",{"$nulls":7},{"v":2048000,"d":"2,048,000"},{"v":2400000,"d":"2,400,000"}]
[3,"Các chức danh còn lại",{"$nulls":7},{"v":1896000,"d":"1,896,000"},{"v":2237000,"d":"2,237,000"}]
[]
[{"$nulls":6},"…, ngày……tháng…….năm…     "]
[{"$nulls":6},"CHỦ TỊCH ỦY BAN NHÂN DÂN TỈNH, THÀNH PHỐ"]
[{"$nulls":6},"( Ký tên, đóng dấu)"]

{"sheet":"2c","index":5,"n_rows":44,"n_cols":22,"rows_kept":44,"hidden":true,"merged":[[0,0,0,21],[3,0,3,21],[4,0,4,21],[6,0,11,0],[6,1,11,1],[6,2,6,3],[6,4,11,4],[6,5,11,5],[6,6,6,12],[6,13,6,19],[6,20,11,20],[6,21,11,21],[7,2,11,2],[7,3,11,3],[7,6,11,6],[7,7,11,7],[7,8,11,8],[7,9,7,11],[7,12,11,12],[7,13,11,13],[7,14,11,14],[7,15,11,15],[7,16,7,18],[7,19,11,19],[8,9,11,9],[8,10,11,10],[8,11,11,11],[8,16,11,16],[8,17,11,17],[8,18,11,18],[42,1,42,4],[44,19,44,21]]}
[1]
["ỦY BAN NHÂN DÂN TỈNH, THÀNH PHỐ:…."]
[]
["BÁO CÁO NHU CẦU KINH PHÍ THỰC HIỆN BẢO HIỂM THẤT NGHIỆP THEO NGHỊ ĐỊNH 28/2015/NĐ-CP NĂM 2020"]
[{"$f":"+#REF!","v":{"$error":"#REF!"}}]
[{"$nulls":21},"Đơn vị: Triệu đồng"]
["STT","Nội dung","QT thu BHTN 2019",null,"Biên chế được cấp có thẩm quyền giao hoặc phê duyệt năm 2020","Tổng số đối tượng hưởng lương có mặt đến 01/7/2020 nộp BHTN","Tổng QL, phụ cấp và BH thất nghiệp tháng 1/2020 theo NĐ 72/2018/NĐ-CP",{"$nulls":6},"Tổng QL, phụ cấp và BH thất nghiệp tháng 1/2020 theo NĐ 38/2019/NĐ-CP",{"$nulls":6},"Chênh lệch Bảo hiểm thất nghiệp tăng thêm 1 tháng","Nhu cầu thực hiện BHTN năm 2020"]
[null,"Nội dung","Tổng số đối tượng","Thu của người lao động và người sử dụng lao động (2%) (đơn vị thuộc địa phương quản lý)",null,null,"Tổng cộng","Mức lương theo ngạch, bậc, chức vụ","Tổng các khoản phụ cấp tính BHTN","Trong đó",null,null,"1% Bảo hiểm thất nghiệp ","Tổng cộng","Mức lương theo ngạch, bậc, chức vụ","Tổng các khoản phụ cấp tính BHTN","Trong đó",null,null,"1% Bảo hiểm thất nghiệp "]
[{"$nulls":5},"lương có mặt","cộng",null,"khoản phụ","Phụ cấp chức vụ","Phụ cấp vượt khung","p.cấp thâm niên nghề",null,"cộng",null,"khoản phụ","Phụ cấp chức vụ","Phụ cấp vượt khung","p.cấp thâm niên nghề"]
[{"$nulls":8},"cấp  tính BHTN ","chức vụ",{"$nulls":5},"cấp  tính BHTN ","chức vụ"]
[{"$nulls":5},"nộp BHTN"]
[]
[null,null,"1","3","5",6,7,{"$f":"G13+1","v":8},9,10,11,12,13,14,15,16,17,18,19,20,21,"22=21*12T"]
["A","TỔNG HỢP TOÀN TỈNH, TP THEO LĨNH VỰC"]
[1,"SN giáo dục - đào tạo "]
[null,"- Giáo dục"]
[null,"- Đào tạo"]
[2,"SN y tế"]
[3,"Sự nghiệp khoa học-công nghệ"]
[4,"Sự nghiệp văn hoá thông tin"]
[5,"Sự nghiệp phát thanh truyền hình"]
[6,"Sự nghiệp thể dục - thể thao"]
[7,"Sự nghiệp đảm bảo xã hội"]
[8,"Hoạt động kinh tế"]
[9,"Sự nghiệp môi trường"]
[10,"Quản lý nhà nước, đảng, đoàn thể"]
["B","CHI TIẾT THEO ĐỊA BÀN"]
["I","Khối tỉnh"]
[1,"Sở y tế"]
[2,"Sở giáo dục - đào tạo"]
[3,"Sở….."]
["II","Khối huyện"]
[1,"Huyện A "]
[null,"- Quản lý nhà nước"]
[null,"- Sự nghiệp y tế"]
[null,"- Sư nghiệp đào tạo"]
[null,"………."]
[2,"Huyện B "]
[3,"Huyện …."]
[]
[null,"Ghi chú: Đề nghị báo cáo chuẩn xác quỹ lương ngạch bậc và đầy đủ các loại phụ cấp dùng để tính, đóng BHTN"]
[{"$nulls":17},"…, ngày……tháng…….năm…                     "]
[null,"XÁC NHẬN CỦA CƠ QUAN BẢO HIỂM XÃ HỘI",{"$nulls":16},"CHỦ TỊCH UỶ BAN NHÂN DÂN TỈNH, THÀNH PHỐ"]
[{"$nulls":18},"(Ký tên, đóng dấu)"]

{"sheet":"2d","index":6,"n_rows":29,"n_cols":9,"rows_kept":29,"hidden":true,"merged":[[0,1,0,5],[1,1,1,2],[3,1,3,5],[3,8,5,8],[4,1,4,5],[6,1,8,1],[6,2,8,2],[6,3,8,3],[6,4,8,4],[6,5,8,5],[24,2,24,5]]}
[null,1]
[null,"ỦY BAN NHÂN DÂN TỈNH, THÀNH PHỐ:…"]
[]
[null,"TỔNG HỢP KINH PHÍ THỰC HIỆN CHẾ ĐỘ PHỤ CẤP ĐỐI VỚI CÁN BỘ KHÔNG CHUYÊN TRÁCH CẤP XÃ, THÔN VÀ TỔ DÂN PHỐ NĂM 2020"]
[null,{"$f":"{\"(Kèm theo Công văn số 14846/BTC-NSNN ngày 02 tháng 12 năm 2020 của Bộ Tài chính)\",0,0}","v":"(Kèm theo Công văn số 14846/BTC-NSNN ngày 02 tháng 12 năm 2020 của Bộ Tài chính)"}]
[{"$nulls":5},"Đơn vị: triệu đồng"]
[null,"STT","CHỈ TIÊU","TỔNG ĐƠN VỊ HÀNH CHÍNH CẤP XÃ, THÔN","MỨC KHOÁN QUỸ PHỤ CẤP 1 THÁNG \n(Theo Nghị định 34/2019/NĐ-CP)","KINH PHÍ KHOÁN TĂNG DO ĐIỀU CHỈNH LƯƠNG CƠ SỞ"]
[]
[]
[null,"A","B","1","2","3=1x2x(1,49-1,39) x 12 tháng",null,"BHXH","đối tượng x 14% x lương tối thiểu tăng thêm"]
[null,null,"TỔNG SỐ",{"$nulls":4},"BHYT","đối tượng x 4,5% x lương tối thiểu tăng thêm"]
[null,"I","Xã, phường, thị trấn"]
[null,1,"Xã loại I",null,16]
[null,2,"Xã loại II",null,13.7]
[null,3,"Xã loại III",null,11.4]
[null,"II","Thôn, tổ dân phố (1)"]
[null,1,"Số xã biên giới, hải đảo."]
[null,null," - Thôn thuộc xã biên giới, hải đảo.",null,{"v":5,"d":"5.0"}]
[null,2,"Số xã có thôn có 350 hộ gia đình trở lên,  xã trọng điểm, phức tạp về an ninh trật tự theo Quyết định của cơ quan có thẩm quyền"]
[null,null," - Số thôn có 350 hộ gia đình trở lên, thôn thuộc xã trọng điểm, phức tạp về an ninh trật tự theo Quyết định của cơ quan có thẩm quyền",null,{"v":5,"d":"5.0"}]
[null,3," Số xã, phường, thị trấn còn lại"]
[null,null," - Thôn còn lại",null,{"v":3,"d":"3.0"}]
[null,null," - Tổ dân phố",null,{"v":3,"d":"3.0"}]
[]
[null,"Ghi chú: ","(1) Theo thứ tự ưu tiên từ trên xuống dưới. Riêng thôn thuộc xã trọng điểm, phức tạp về an ninh trật tự được cơ quan có thẩm quyền công nhận."]
[]
[{"$nulls":4},"…, ngày……tháng…….năm…     "]
[{"$nulls":4},"CHỦ TỊCH UỶ BAN NHÂN DÂN TỈNH, THÀNH PHỐ"]
[{"$nulls":4},"(Ký tên, đóng dấu)"]

{"sheet":"2đ","index":7,"n_rows":26,"n_cols":10,"rows_kept":26,"hidden":true,"merged":[[0,0,0,9],[3,0,3,9],[4,0,4,9],[7,0,11,0],[7,1,11,1],[7,2,11,2],[7,3,11,3],[7,4,11,4],[7,5,11,5],[7,6,11,6],[7,7,11,7],[7,8,11,8],[7,9,11,9],[21,1,21,9]]}
[1]
["ỦY BAN NHÂN DÂN TỈNH, THÀNH PHỐ:…"]
[]
["BÁO CÁO NGUỒN THỰC HIỆN CCTL TIẾT KIỆM TỪ VIỆC THỰC HIỆN TINH GIẢN BIÊN CHẾ, SÁP NHẬP ĐƠN VỊ\n THEO NGHỊ QUYẾT SỐ 18-NQ/TW VÀ NGHỊ QUYẾT SỐ 19/NQ-TW NGÀY 25/10/2017 CỦA BAN CHẤP HÀNH TRUNG ƯƠNG"]
[{"$f":"+#REF!","v":{"$error":"#REF!"}}]
[]
[{"$nulls":9},"Đơn vị: Triệu đồng"]
["STT","Phân loại đơn vị ","Tổng số đối tượng có mặt đến 31/12/2015","Tổng số đối tượng có mặt đến 01/01/2021","Quỹ lương, phụ cấp tháng 1 năm 2021 (lương 1,49)","Tổng số đối tượng có mặt đến 01/01/2021","Quỹ lương, phụ cấp tháng 1 năm 2022 (lương 1,49)","Quỹ lương, phụ cấp tiết kiệm trong 1 tháng","Kinh phí tiết kiệm được từ định mức chi hoạt động trong 1 tháng","Quỹ lương, phụ cấp và định mức chi hoạt động tiết kiệm năm 2022"]
[]
[]
[]
[]
["A","B","1",2,3,4,5,"6 = 5 - 3",7,8]
[null,"TỔNG CỘNG"]
["I","Quản lý nhà nước"]
["II","Sự nghiệp công lập"]
[1,"Đơn vị đảm bảo chi thường xuyên và chi đầu tư (1)"]
[2,"Đơn vị đảm bảo chi thường xuyên (1)"]
[3,"Đơn vị đảm bảo một phần chi thường xuyên"]
[4,"Đơn vị được nhà nước đảm bảo chi thường xuyên"]
[]
["Ghi chú: ","(1) Đối với các đơn vị tự đảm bảo chi thường xuyên và chi đầu tư; tự đảm bảo chi thường xuyên, chỉ báo cáo số lượng biên chế tinh giản, không tổng hợp nhu cầu lương, định mức chi hoạt động tiết kiệm."]
[]
[{"$nulls":9},"…, ngày……tháng…….năm…                     "]
[{"$nulls":9},"CHỦ TỊCH ỦY BAN NHÂN DÂN TỈNH, THÀNH PHỐ"]
[{"$nulls":9},"( Ký tên, đóng dấu)                               "]

{"sheet":"2e","index":8,"n_rows":25,"n_cols":8,"rows_kept":25,"hidden":true,"merged":[[0,0,0,7],[3,0,3,7],[4,0,4,7],[7,0,11,0],[7,1,11,1],[7,2,11,2],[7,3,11,3],[7,4,9,5],[7,6,11,6],[7,7,11,7],[10,4,11,4],[10,5,11,5],[19,1,19,7],[20,1,20,7]]}
[1]
["ỦY BAN NHÂN DÂN TỈNH, THÀNH PHỐ:…"]
[]
["BÁO CÁO NGUỒN THỰC HIỆN CCTL TIẾT KIỆM TỪ VIỆC THAY ĐỔI CƠ CHẾ TỰ CHỦ  TRONG NĂM 2022\n THEO NGHỊ QUYẾT SỐ 19-NQ/TW NGÀY 25/10/2017 CỦA BAN CHẤP HÀNH TRUNG ƯƠNG"]
[{"$f":"+'4b'!A4:I4","v":{"$error":"#REF!"}}]
[]
[{"$nulls":7},"Đơn vị: Triệu đồng"]
["STT","Phân loại đơn vị sự nghiệp","Số lượng đơn vị đến 31/12/2021","Số lượng đơn vị đến 31/12/2022","Số lượng đơn vị thay đổi loại hình cơ chế tự chủ",null,"Kinh phí tiết kiệm được từ việc thay đổi cơ chế tự chủ trong 1 tháng (1)","Kinh phí tiết kiệm năm 2022 "]
[]
[]
[{"$nulls":4},"Tăng","Giảm"]
[]
["A","B",1,2,3,4,5,6]
[null,"TỔNG CỘNG"]
[1,"Đơn vị đảm bảo chi thường xuyên và chi đầu tư"]
[2,"Đơn vị đảm bảo chi thường xuyên"]
[3,"Đơn vị đảm bảo một phần chi thường xuyên"]
[4,"Đơn vị được nhà nước đảm bảo chi thường xuyên"]
[]
["Ghi chú: ","(1) Phần ngân sách nhà nước giảm hỗ trợ cho đơn vị."]
[null,"(2) Kinh phí tiết kiệm được không bao gồm phần kinh phí tiết kiệm từ việc tinh giản biên chế, sát nhập đơn vị đã được tổng hợp tại biểu 2đ."]
[]
[{"$nulls":7},"…, ngày……tháng…….năm…                     "]
[{"$nulls":7},"CHỦ TỊCH ỦY BAN NHÂN DÂN TỈNH, THÀNH PHỐ"]
[{"$nulls":7},"( Ký tên, đóng dấu)                               "]

{"sheet":"2g","index":9,"n_rows":37,"n_cols":7,"rows_kept":37,"hidden":true,"merged":[[0,0,0,6],[3,0,3,6],[4,0,4,6],[6,0,10,0],[6,1,10,1],[6,2,10,2],[6,3,6,6],[7,3,10,3],[7,4,10,4],[7,5,10,5],[7,6,10,6],[29,1,29,5]]}
[1]
["ỦY BAN NHÂN DÂN TỈNH, THÀNH PHỐ:…",{"$nulls":5},"Biểu số 2g"]
[]
["BÁO CÁO QUỸ TIỀN LƯƠNG, PHỤ CẤP ĐỐI VỚI LAO ĐỘNG THEO HỢP ĐỒNG KHU VỰC HÀNH CHÍNH VÀ ĐƠN VỊ SỰ NGHIỆP"]
[{"$f":"+'4b'!A4:I4","v":{"$error":"#REF!"}}]
[{"$nulls":6},"Đơn vị: Triệu đồng"]
["STT","NỘI DUNG","TỔNG SỐ ĐỐI TƯỢNG HƯỞNG LƯƠNG CÓ MẶT ĐẾN 01/7/2020 (1)"," QUỸ TIỀN LƯƠNG, PHỤ CẤP VÀ CÁC KHOẢN ĐÓNG GÓP THÁNG 01/2022\nTHEO NGHỊ ĐỊNH SỐ 38/2019/NĐ-CP (2)"]
[{"$nulls":3},"TỔNG CỘNG"," LƯƠNG THEO NGẠCH, BẬC CHỨC VỤ","TỔNG CÁC KHOẢN PHỤ CẤP","CÁC KHOẢN ĐÓNG GÓP BHXH, BHYT, BHTN, KPCĐ "]
[]
[]
[]
[1,"2",3,"4 = 5 + 6 + 7",5,6,7]
[null,"TỔNG CỘNG"]
[1,"Sự nghiệp giáo dục - đào tạo "]
[null,"- Giáo dục: "]
[null,"Trong đó, đơn vị tự đảm bảo (3)"]
[null,"- Đào tạo"]
[null,"Trong đó, đơn vị tự đảm bảo (3)"]
[2,"Sự nghiệp y tế"]
[null,"Trong đó, đơn vị tự đảm bảo (3)"]
[3,"Sự nghiệp khoa học-công nghệ"]
[4,"Sự nghiệp văn hoá thông tin"]
[5,"Sự nghiệp phát thanh truyền hình"]
[6,"Sự nghiệp thể dục - thể thao"]
[7,"Sự nghiệp đảm bảo xã hội"]
[8,"Hoạt động kinh tế"]
[9,"Sự nghiệp môi trường"]
[10,"Quản lý nhà nước"]
[]
[null,"Ghi chú: \n(1) Bao gồm đối tượng theo hợp đồng Nghị định 68/2000/NĐ-CP và hợp đồng lao động khác."]
[null,"(2) Mức đóng BHXH là 17,5%, BHYT là 3%, BHTN là 1%, KPCĐ là 2%."]
[null,"(2) Không tổng hợp vào biểu 2a và biểu 4a."]
[null,"(3) Bao gồm các đơn vị tự bảo đảm chi thường xuyên và chi đầu tư, đơn vị tự bảo đảm chi thường xuyên."]
[]
[{"$nulls":6},"…, ngày……tháng…….năm…                     "]
[{"$nulls":6},"CHỦ TỊCH ỦY BAN NHÂN DÂN TỈNH, THÀNH PHỐ"]
[{"$nulls":6},"( Ký tên, đóng dấu)                               "]

{"sheet":"2h","index":10,"n_rows":41,"n_cols":10,"rows_kept":41,"hidden":true,"merged":[[0,0,0,9],[3,0,3,9],[4,0,4,9],[7,0,12,0],[7,1,12,1],[7,2,12,2],[7,3,7,5],[7,6,7,8],[7,9,12,9],[8,3,12,3],[8,4,12,4],[8,5,12,5],[8,6,12,6],[8,7,12,7],[8,8,12,8]]}
[1]
["ỦY BAN NHÂN DÂN TỈNH, THÀNH PHỐ:….",{"$nulls":8},"Biểu số 2h"]
[]
["TỔNG HỢP PHỤ CẤP ƯU ĐÃI GIẢM DO ĐIỀU CHỈNH DANH SÁCH HUYỆN NGHÈO THEO QUYẾT ĐỊNH SỐ 275/QĐ-TTG NGÀY 07/3/2018 CỦA THỦ TƯỚNG CHÍNH PHỦ"]
[{"$f":"+'4b'!A4:I4","v":{"$error":"#REF!"}}]
[]
[{"$nulls":9},"Đơn vị: triệu đồng"]
["STT","Chỉ tiêu","Biên chế được hưởng phụ cấp ưu đãi nghề có mặt đến 01/7/2020","Tổng hệ số lương ngạch bậc, phụ cấp CV, thâm niên, vượt khung",null,null,"Chênh lệch hệ số phụ cấp ưu đãi",null,null,"Quỹ phụ cấp ưu đãi giảm năm 2020 (lương 1,39)"]
[null,"Chỉ tiêu",null,"Tổng số","Hệ số lương ngạch bậc","Hệ số phụ cấp chức vụ, vượt khung","Tổng hệ số phụ cấp ưu đãi (NĐ 61, 64, 19)","Tổng hệ số phụ cấp ưu đãi (QĐ 244, 276)","Chênh lệch hệ số phụ cấp ưu đãi 1 tháng"]
[]
[{"$nulls":3},"số"]
[]
[]
["A","B",1,"2 = 3+4",3,4,"5= 2 x tỷ lệ phụ cấp ưu đãi","6= 2 x tỷ lệ phụ cấp ưu đãi","7=6-5","8=7*1,39*12T"]
[null,"Tổng số"]
["I","Khối tỉnh"]
[1,"Đơn vị…."]
[2,"Đơn vị…."]
[3,"……………."]
["II","Khối huyện"]
[1,"Huyện A"]
[null,"Trong đó:"]
[null,"Xã…."]
[null,"Đơn vị…."]
[null,"Đơn vị…."]
[null,"Xã…."]
[null,"Đơn vị…."]
[null,"Đơn vị…."]
[null,"Thôn…."]
[null,"Đơn vị…."]
[null,"Đơn vị…."]
[null,"Thôn…."]
[null,"Đơn vị…."]
[null,"Đơn vị…."]
[2,"Huyện B"]
[null,"…"]
[]
[]
[{"$nulls":9},"…, ngày……tháng…….năm…                     "]
[{"$nulls":9},"CHỦ TỊCH ỦY BAN NHÂN DÂN TỈNH, THÀNH PHỐ"]
[{"$nulls":9},"( Ký tên, đóng dấu)                               "]

{"sheet":"2i","index":11,"n_rows":41,"n_cols":8,"rows_kept":41,"hidden":true,"merged":[[0,0,0,7],[3,0,3,7],[4,0,4,7],[7,0,12,0],[7,1,12,1],[7,2,12,2],[7,3,7,5],[7,6,12,6],[7,7,12,7],[8,3,12,3],[8,4,12,4],[8,5,12,5]]}
[1]
["ỦY BAN NHÂN DÂN TỈNH, THÀNH PHỐ:….",{"$nulls":6},"Biểu số 2i"]
[]
["TỔNG HỢP PHỤ CẤP THU HÚT GIẢM DO ĐIỀU CHỈNH DANH SÁCH HUYỆN NGHÈO THEO QUYẾT ĐỊNH SỐ 275/QĐ-TTG NGÀY 07/3/2018 CỦA THỦ TƯỚNG CHÍNH PHỦ"]
[{"$f":"+'4b'!A4:I4","v":{"$error":"#REF!"}}]
[]
[{"$nulls":7},"Đơn vị: triệu đồng"]
["STT","Chỉ tiêu","Biên chế được hưởng phụ cấp thu hút có mặt đến 01/7/2020","Tổng hệ số lương ngạch bậc, phụ cấp CV, thâm niên, vượt khung",null,null,"Hệ số phụ cấp thu hút (NĐ 61, 64, 19, 116)","Quỹ phụ cấp thu hút giảm năm 2020\n(lương 1,39)"]
[null,"Chỉ tiêu",null,"Tổng số","Hệ số lương ngạch bậc","Hệ số phụ cấp chức vụ, vượt khung"]
[]
[{"$nulls":3},"số"]
[]
[]
["A","B",1,"2=3+4",3,4,"5=2 x 70%","6=5 x 1,39 x 12T"]
[null,"Tổng số"]
["I","Khối tỉnh"]
[1,"Đơn vị…."]
[2,"Đơn vị…."]
[3,"……………."]
["II","Khối huyện"]
[1,"Huyện A"]
[null,"Trong đó:"]
[null,"Xã…."]
[null,"Đơn vị…."]
[null,"Đơn vị…."]
[null,"Xã…."]
[null,"Đơn vị…."]
[null,"Đơn vị…."]
[null,"Thôn…."]
[null,"Đơn vị…."]
[null,"Đơn vị…."]
[null,"Thôn…."]
[null,"Đơn vị…."]
[null,"Đơn vị…."]
[2,"Huyện B"]
[null,"…"]
[]
[]
[{"$nulls":7},"…, ngày……tháng…….năm…                     "]
[{"$nulls":7},"CHỦ TỊCH ỦY BAN NHÂN DÂN TỈNH, THÀNH PHỐ"]
[{"$nulls":7},"( Ký tên, đóng dấu)                               "]

{"sheet":"2k","index":12,"n_rows":23,"n_cols":21,"rows_kept":23,"hidden":true,"merged":[[0,0,0,20],[3,0,3,20],[4,0,4,20],[7,0,12,0],[7,1,12,1],[7,2,12,2],[7,3,7,4],[7,5,12,5],[7,6,7,8],[7,9,7,10],[7,11,12,11],[7,12,12,12],[7,15,12,15],[7,16,7,18],[7,19,12,19],[7,20,12,20],[8,3,12,3],[8,4,12,4],[8,6,12,6],[8,7,12,7],[8,8,12,8],[8,9,12,9],[8,10,12,10],[8,16,12,16],[8,17,12,17],[8,18,12,18]]}
[1]
["ỦY BAN NHÂN DÂN TỈNH, THÀNH PHỐ:….",{"$nulls":19},"Biểu số 2k"]
[]
["TỔNG HỢP KINH PHÍ GIẢM  THEO NGHỊ ĐỊNH SỐ 34/2019/NĐ-CP - CÁN BỘ, CÔNG CHỨC CẤP XÃ"]
[{"$f":"+#REF!","v":{"$error":"#REF!"}}]
[]
[{"$nulls":20},"Đơn vị: triệu đồng"]
["STT","Chỉ tiêu","Tổng số đơn vị hành chính cấp xã","Số lượng cán bộ, công chức cấp xã theo Nghị định 92/2009/NĐ-CP",null,"Số lượng công chức cấp xã có mặt 1/7/2020","Trong đó",null,null,"Số lượng cán bộ, công chức cấp xã theo quy định tại Nghị định 34/2019/NĐ-CP",null,"Số lượng cán bộ, công chức cấp xã giảm","Qũy lương, phụ cấp, các khoản đóng góp giảm 1 tháng (lương 1,39)",null,null,"TỔNG ĐƠN VỊ HÀNH CHÍNH CẤP XÃ, THÔN","Tổng hệ số lương ngạch bậc, phụ cấp CV, thâm niên, vượt khung",null,null,"Hệ số phụ cấp thu hút (NĐ 61, 64, 19, 116)","Quỹ lương, phụ cấp giảm năm 2020\n(lương 1,39)"]
[null,"Chỉ tiêu",null,"Định biên theo Nghị định 92/2009/NĐ-CP","Tổng số",null,"Hệ số lương ngạch bậc bình quân","Hệ số phụ cấp bình quân","Tỷ lệ phụ cấp tính các khoản đóng góp","Định biên theo Nghị định 34/2019/NĐ-CP","Tổng số",{"$nulls":5},"Tổng số","Hệ số lương ngạch bậc","Hệ số phụ cấp chức vụ, vượt khung"]
[]
[{"$nulls":16},"số"]
[]
[]
["A","B",1,2,"3=1x2",4,5,6,7,8,"9=1x8",10,11,null,null,1,"2=3+4",3,4,"5=2 x 70%","12=11 x 12T"]
[null,"Tổng số"]
[1,"Xã loại 1",null,25,{"$nulls":5},23]
[2,"Xã loại 2",null,23,{"$nulls":5},21]
[3,"Xã loại 3",null,21,{"$nulls":5},19]
[]
[]
[{"$nulls":20},"…, ngày……tháng…….năm…                     "]
[{"$nulls":20},"CHỦ TỊCH ỦY BAN NHÂN DÂN TỈNH, THÀNH PHỐ"]
[{"$nulls":20},"( Ký tên, đóng dấu)                               "]

{"sheet":"2l","index":13,"n_rows":34,"n_cols":14,"rows_kept":34,"hidden":true,"merged":[[0,1,0,10],[1,1,1,2],[3,1,3,10],[4,1,4,10],[6,1,8,1],[6,2,8,2],[6,3,8,3],[6,4,6,5],[6,6,8,6],[6,7,6,8],[6,9,8,9],[6,10,8,10],[7,4,8,4],[7,5,8,5],[29,2,29,10]]}
[null,1]
[null,"ỦY BAN NHÂN DÂN TỈNH, THÀNH PHỐ:…"]
[]
[null,"TỔNG HỢP KINH PHÍ GIẢM THEO NGHỊ ĐỊNH SỐ 34 - NGƯỜI HOẠT ĐỘNG KHÔNG CHUYÊN TRÁCH Ở CẤP XÃ"]
[null,{"$f":"{\"(Kèm theo Công văn số 14846/BTC-NSNN ngày 02 tháng 12 năm 2020 của Bộ Tài chính)\",0,0}","v":"(Kèm theo Công văn số 14846/BTC-NSNN ngày 02 tháng 12 năm 2020 của Bộ Tài chính)"}]
[{"$nulls":10},"Đơn vị: triệu đồng"]
[null,"STT","CHỈ TIÊU","TỔNG ĐƠN VỊ HÀNH CHÍNH CẤP XÃ","MỨC KHOÁN QUỸ PHỤ CẤP 1 THÁNG",null,"SỐ LƯỢNG CÁN BỘ KCT CÓ MẶT"," KHOÁN QUỸ PHỤ CẤP 1 THÁNG THEO NGHỊ ĐỊNH 29 (LƯƠNG 1,39)",null,"KHOÁN QUỸ PHỤ CẤP 1 THÁNG THEO NGHỊ ĐỊNH 34 (LƯƠNG 1,39)","QUỸ PHỤ CẤP GIẢM  NĂM 2020"]
[{"$nulls":4},"Theo Nghị định 29/2013/NĐ-CP","Theo Nghị định 34/2019/NĐ-CP",null,"KHOÁN  QUỸ","BHXH (14%) CHO "]
[{"$nulls":7},"PHỤ CẤP","CÁN BỘ KCT CẤP XÃ"]
[null,"A","B","1","2","3","4","5=1*2*1,39","6=4x14%x1,39","7=1x3x1,39","8= (7-6-5) x 12T",null,"BHXH","đối tượng x 14% x lương tối thiểu tăng thêm"]
[null,null,"TỔNG SỐ",{"$nulls":9},"BHYT","đối tượng x 4,5% x lương tối thiểu tăng thêm"]
[null,"I","Xã, phường, thị trấn"]
[null,1,"Xã loại I",null,20.3,16,{"$nulls":5},25]
[null,2,"Xã loại II",null,18.6,13.7,{"$nulls":5},23]
[null,3,"Xã loại III",null,17.6,11.4,{"$nulls":5},21]
{"$rows_empty":16}
[{"$nulls":10},"…, ngày……tháng…….năm…                     "]
[{"$nulls":10},"CHỦ TỊCH ỦY BAN NHÂN DÂN TỈNH, THÀNH PHỐ"]
[{"$nulls":10},"( Ký tên, đóng dấu)                               "]

{"sheet":"2m","index":14,"n_rows":41,"n_cols":11,"rows_kept":41,"hidden":true,"merged":[[0,0,0,10],[3,0,3,10],[4,0,4,10],[7,0,12,0],[7,1,12,1],[7,2,12,2],[7,3,7,5],[7,6,7,8],[7,9,12,9],[7,10,12,10],[8,3,12,3],[8,4,12,4],[8,5,12,5],[8,6,12,6],[8,7,12,7],[8,8,12,8]]}
[1]
["ỦY BAN NHÂN DÂN TỈNH, THÀNH PHỐ:….",{"$nulls":9},"Biểu số 2m"]
[]
["TỔNG HỢP PHỤ CẤP ƯU ĐÃI GIẢM  DO THỰC HIỆN NGHỊ ĐỊNH SỐ 76/2019/NĐ-CP CỦA CHÍNH PHỦ"]
[{"$f":"+#REF!","v":{"$error":"#REF!"}}]
[]
[{"$nulls":10},"Đơn vị: triệu đồng"]
["STT","Chỉ tiêu","Số lượng biên chế không được hưởng phụ cấp ưu đãi do điều chỉnh địa bàn theo NĐ 76","Tổng hệ số lương ngạch bậc, phụ cấp CV, thâm niên, vượt khung",null,null,"Chênh lệch hệ số phụ cấp ưu đãi",null,null,"Quỹ phụ cấp ưu đãi giảm năm 2019 (lương 1,49)","Quỹ phụ cấp ưu đãi giảm năm 2020 (lương 1,49)"]
[null,"Chỉ tiêu",null,"Tổng số","Hệ số lương ngạch bậc","Hệ số phụ cấp chức vụ, vượt khung","Tổng hệ số phụ cấp ưu đãi (NĐ 61, 64, 19)","Tổng hệ số phụ cấp ưu đãi (QĐ 244, 276)","Chênh lệch hệ số phụ cấp ưu đãi 1 tháng"]
[]
[{"$nulls":3},"số"]
[]
[]
["A","B",1,"2 = 3+4",3,4,"5= 2 x tỷ lệ phụ cấp ưu đãi","6= 2 x tỷ lệ phụ cấp ưu đãi","7=6-5","8=7*1,49*1T","9=7*1,49*12T"]
[null,"Tổng số"]
["I","Khối tỉnh"]
[1,"Đơn vị…."]
[2,"Đơn vị…."]
[3,"……………."]
["II","Khối huyện"]
[1,"Huyện A"]
[null,"Trong đó:"]
[null,"Xã…."]
[null,"Đơn vị…."]
[null,"Đơn vị…."]
[null,"Xã…."]
[null,"Đơn vị…."]
[null,"Đơn vị…."]
[null,"Thôn…."]
[null,"Đơn vị…."]
[null,"Đơn vị…."]
[null,"Thôn…."]
[null,"Đơn vị…."]
[null,"Đơn vị…."]
[2,"Huyện B"]
[null,"…"]
[]
[]
[{"$nulls":10},"…, ngày……tháng…….năm…                     "]
[{"$nulls":10},"CHỦ TỊCH ỦY BAN NHÂN DÂN TỈNH, THÀNH PHỐ"]
[{"$nulls":10},"( Ký tên, đóng dấu)                               "]

{"sheet":"2n","index":15,"n_rows":41,"n_cols":9,"rows_kept":41,"hidden":true,"merged":[[0,0,0,8],[3,0,3,8],[4,0,4,8],[7,0,12,0],[7,1,12,1],[7,2,12,2],[7,3,7,5],[7,6,12,6],[7,7,12,7],[7,8,12,8],[8,3,12,3],[8,4,12,4],[8,5,12,5]]}
[1]
["ỦY BAN NHÂN DÂN TỈNH, THÀNH PHỐ:….",{"$nulls":7},"Biểu số 2n"]
[]
["TỔNG HỢP PHỤ CẤP THU HÚT GIẢM  DO THỰC HIỆN NGHỊ ĐỊNH SỐ 76/2019/NĐ-CP CỦA CHÍNH PHỦ"]
[{"$f":"+#REF!","v":{"$error":"#REF!"}}]
[]
[{"$nulls":8},"Đơn vị: triệu đồng"]
["STT","Chỉ tiêu","Số lượng biên chế không được hưởng phụ cấp thu hút do điều chỉnh địa bàn theo NĐ 76","Tổng hệ số lương ngạch bậc, phụ cấp CV, thâm niên, vượt khung",null,null,"Hệ số phụ cấp thu hút (NĐ 61, 64, 19, 116)","Quỹ phụ cấp thu hút giảm năm 2019\n(lương 1,49)","Quỹ phụ cấp thu hút giảm năm 2020\n(lương 1,49)"]
[null,"Chỉ tiêu",null,"Tổng số","Hệ số lương ngạch bậc","Hệ số phụ cấp chức vụ, vượt khung"]
[]
[{"$nulls":3},"số"]
[]
[]
["A","B",1,"2=3+4",3,4,"5=2 x 70%","6=5 x 1,49 x 1T","7=5 x 1,49 x 12T"]
[null,"Tổng số"]
["I","Khối tỉnh"]
[1,"Đơn vị…."]
[2,"Đơn vị…."]
[3,"……………."]
["II","Khối huyện"]
[1,"Huyện A"]
[null,"Trong đó:"]
[null,"Xã…."]
[null,"Đơn vị…."]
[null,"Đơn vị…."]
[null,"Xã…."]
[null,"Đơn vị…."]
[null,"Đơn vị…."]
[null,"Thôn…."]
[null,"Đơn vị…."]
[null,"Đơn vị…."]
[null,"Thôn…."]
[null,"Đơn vị…."]
[null,"Đơn vị…."]
[2,"Huyện B"]
[null,"…"]
[]
[]
[{"$nulls":8},"…, ngày……tháng…….năm…                     "]
[{"$nulls":8},"CHỦ TỊCH ỦY BAN NHÂN DÂN TỈNH, THÀNH PHỐ"]
[{"$nulls":8},"( Ký tên, đóng dấu)                               "]